Cogmind - Beta 16.1 @@@ ROGUE MODE // 2026.03.01 @ 21:59:44 Player: alice_fexa Result: Escaped! Performance ------------- Evolutions (9) 4500 Regions Visited (16) 3200 Robots Destroyed (200) 1000 Value Destroyed (4673) 4673 Prototype IDs (36) 720 Alien Tech Used (2) 400 Bonus (4125) 4125 TOTAL SCORE: 18618 Bonus ------- High Alert Combat Kills 134 Follower Combat Kills 691 Met Zhirov 300 Win 3000 Cogmind --------- Core Integrity 1423/1600 Matter 234/300 Energy 514/520 System Corruption 0% Temperature Cool (12) Movement Hovering (40) Location To Epsilon Eridani Parts ------- > --- POWER (2) -------- Fusion Reactor Antimatter Reactor > --- PROPULSION (8) --- Antigrav System Improved Antigrav System Improved Antigrav System Improved Antigrav System Improved Linear Gravjet Antigrav Array Combat Linear Gravjet > --- UTILITY (10) ----- Structural Scanner Spectral Analyzer Advanced Sensor Array Advanced Sensor Array Advanced Signal Interpreter Makeshift Transmission Jammer Hacking Suite Improved Hacking Suite Improved Hacking Suite Advanced System Shield > --- WEAPON (6) ------- Matter Neutralizer Enhanced Nova Cannon Advanced Datajack Vibroblade > --- INVENTORY (5) ---- Neutrino Core Improved Antigrav System Improved Matter Compressor (178) Improved Hacking Suite Ragnarok Missile Launcher Peak State ------------ > --- POWER ------------ Fusion Reactor Antimatter Reactor > --- PROPULSION ------- Cooled Aerolev Unit Antigrav System Antigrav System Antigrav System Antigrav System Improved Linear Gravjet Antigrav Array > --- UTILITY ---------- Experimental Heat Sink Structural Scanner Spectral Analyzer Advanced Sensor Array Advanced Sensor Array Advanced Signal Interpreter Makeshift Transmission Jammer Hacking Suite Improved Hacking Suite Advanced System Shield > --- WEAPON ----------- 1B-0RG's Assimilator Vibroblade > --- INVENTORY -------- Neutrino Core Improved Matter Compressor Enhanced Nova Cannon Ragnarok Missile Launcher Advanced Datajack [Rating: 194] Favorites ----------- Power Ion Engine Engine Ion Engine Power Core Nuclear Core Reactor Fusion Reactor Propulsion Light Treads Treads Light Treads Wheel Wheel Hover Unit Antigrav System Flight Unit Xenon Bombardment Thruster Utility Hacking Suite Device Advanced Sensor Array Storage Huge Storage Unit Processor Advanced Signal Interpreter Hackware Hacking Suite Weapon Heavy Flail Energy Gun Small Laser Energy Cannon Enhanced Nova Cannon Ballistic Gun Enhanced Autogun Ballistic Cannon Light Cannon Launcher Grenade Launcher Impact Weapon Heavy Flail Slashing Weapon Molecular Scythe Piercing Weapon Spear Special Melee Weapon Improved Datajack Build | -11 -10 -10 -8 -7 -6 -5 -4 -4 -4 -4 -4 -4 -3 -3 -2 -1 ------- Run | Yrd Mat Sub Mat Fac Fac Fac Fac Was Fac Upp Upp Zhi Pro Res Res Acc Slots Evolved 18 | . . . 4 2 2 2 2 . . . . . . 2 2 2 Power 1 | . . . . . . 1 . . . . . . . . . . Propulsion 6 | . . . 1 1 1 . 1 . . . . . . 1 1 . Utility 7 | . . . 2 1 1 1 1 . . . . . . 1 . . Weapon 4 | . . . 1 . . . . . . . . . . . 1 2 Parts Attached 175 | 6 8 4 39 24 12 28 10 1 2 . 6 2 2 9 5 17 Power 18 | 1 . . 3 2 2 5 1 . 1 . 1 1 . . 1 . Engine 9 | 1 . . 2 1 1 3 1 . . . . . . . . . Core 6 | . . . 1 1 1 2 . . . . 1 . . . . . Reactor 3 | . . . . . . . . . 1 . . 1 . . 1 . Propulsion 62 | 2 1 1 13 12 2 10 5 . . . 2 . 2 1 1 10 Treads 10 | 2 . . 8 . . . . . . . . . . . . . Leg . | . . . . . . . . . . . . . . . . . Wheel 7 | . 1 1 5 . . . . . . . . . . . . . Hover 44 | . . . . 11 2 10 5 . . . 2 . 2 1 1 10 Flight 1 | . . . . 1 . . . . . . . . . . . . Utility 52 | 1 4 1 4 5 7 10 2 . 1 . 3 1 . 6 2 5 Device 25 | . 1 1 1 2 1 10 1 . 1 . 3 . . . 2 2 Storage 10 | 1 2 . . 1 1 . 1 . . . . . . 4 . . Processor 11 | . 1 . 3 1 3 . . . . . . . . 1 . 2 Hackware 6 | . . . . 1 2 . . . . . . 1 . 1 . 1 Protection . | . . . . . . . . . . . . . . . . . Artifact . | . . . . . . . . . . . . . . . . . Weapon 43 | 2 3 2 19 5 1 3 2 1 . . . . . 2 1 2 Energy Gun 2 | 1 . . 1 . . . . . . . . . . . . . Energy Cannon 5 | . . . 1 1 . 1 . . . . . . . . 1 1 Ballistic Gun 16 | 1 . 2 13 . . . . . . . . . . . . . Ballistic Cannon 2 | . 2 . . . . . . . . . . . . . . . Launcher 7 | . 1 . 2 1 . 1 1 1 . . . . . . . . Special Weapon . | . . . . . . . . . . . . . . . . . Impact Weapon 3 | . . . 2 . 1 . . . . . . . . . . . Slashing Weapon 3 | . . . . 1 . . 1 . . . . . . 1 . . Piercing Weapon 1 | . . . . 1 . . . . . . . . . . . . Special Melee Weapon 4 | . . . . 1 . 1 . . . . . . . 1 . 1 Unidentified Prototypes 22 | . . . 4 3 . 4 2 1 . . 1 2 . 3 . 2 Parts Lost 26 | . . . 5 4 . 9 2 . . . 1 . 1 . . 4 Power 3 | . . . . . . 2 1 . . . . . . . . . Propulsion 12 | . . . 3 3 . 3 1 . . . . . 1 . . 1 Utility 6 | . . . . 1 . 3 . . . . 1 . . . . 1 Weapon 5 | . . . 2 . . 1 . . . . . . . . . 2 Highest Loss Streak 5 | . . . 3 3 . 5 2 . . . 1 . 1 . . 2 To Critical Strikes . | . . . . . . . . . . . . . . . . . Average Backups 14 | . 18 24 20 5 6 10 10 11 11 11 11 11 10 10 10 4 Power 1 | . 2 2 2 . . 1 1 1 1 . . 1 1 1 1 . Propulsion 4 | . 5 9 6 . 1 1 . 2 2 2 2 2 1 2 1 . Utility 2 | . 3 3 2 1 1 1 2 2 2 3 2 2 3 2 3 1 Weapon 4 | . 6 7 7 1 2 3 4 4 4 4 4 3 3 3 2 1 Tool/Special . | . . . . . . . . . . . . . . . . . Unused Backups 51 | . 4 10 17 6 . 1 3 . 1 . 1 1 . . 1 6 Power 9 | . 2 . 3 2 . . 1 . . . . . . . 1 . Propulsion 8 | . . 4 1 1 . 1 . . . . . . . . . 1 Utility 8 | . . . . 2 . . 2 . 1 . . . . . . 3 Weapon 21 | . 2 5 13 . . . . . . . . 1 . . . . Tool/Special 5 | . . 1 . 1 . . . . . . 1 . . . . 2 Average Slot Usage (%) 96 | . 97 99 99 93 99 94 95 100 100 100 99 100 100 95 93 79 Engine 7 | . 13 14 7 . 1 9 7 10 10 5 2 . . . . . Core 1 | . . . 1 6 4 1 2 . . . 2 5 5 4 3 . Treads 9 | . 19 14 19 . . . . . . . . . . . . . Wheel 4 | . 8 14 7 . . . . . . . . . . . . . Hover 14 | . . . . 27 32 25 27 31 31 31 30 30 30 27 29 25 Device 9 | . 1 13 8 6 6 9 14 15 15 15 17 20 20 17 15 16 Storage 8 | . 14 14 9 7 6 5 5 5 5 5 5 5 5 4 4 . Processor 11 | . 10 . 17 16 13 11 10 10 10 10 10 10 10 9 8 7 Hackware 5 | . . . . 5 12 11 10 10 10 10 10 10 10 12 12 11 Ballistic Gun 7 | . 5 7 25 . . . . . . . . . . . . . Ballistic Cannon 5 | . 19 20 . . . . . . . . . . . . . . Impact Weapon 2 | . . . 1 7 6 5 4 5 5 5 5 5 5 4 4 . Slashing Weapon 1 | . . . . 2 . . 2 5 5 5 4 5 5 4 4 2 Piercing Weapon 1 | . . . . 1 6 4 2 . . . . . . . . . Special Melee Weapon 2 | . . . . 5 6 4 5 5 5 5 5 5 5 4 4 2 Peak Build Rating 194 | 6 9 18 40 53 73 88 108 111 107 106 111 114 114 133 152 194 Average Rating 55 | 4 8 10 33 39 67 80 100 104 104 106 108 112 112 129 143 169 On Entrance 77 | . 6 9 18 39 53 73 83 104 105 106 106 111 114 112 132 149 Avg Prop Armor Cover (%) 10 | . 10 10 15 3 5 . . . . . . . . . . 3 Naked Turns . | . . . . . . . . . . . . . . . . . Heaviest Build 101 | 12 91 94 101 28 37 51 56 56 56 55 61 61 61 61 76 95 Greatest Support 102 | 40 40 16 60 36 46 52 64 64 64 64 64 64 64 82 96 102 Greatest Overweight (x) 10 | . 9 9 10 1 . 1 . . 1 . . . 1 . . 1 Average Overweight (x) 1 | . 5 8 6 . . . . . . . . . . . . . Largest Inventory Capacity 25 | 8 25 25 25 25 15 15 15 15 15 15 15 15 15 15 15 15 Average Capacity 17 | 6 20 25 25 10 11 15 15 15 15 15 15 15 15 15 15 5 Most Carried 25 | 1 25 25 25 25 14 15 15 15 15 15 15 15 15 15 15 15 Average Carried 17 | . 18 24 24 9 11 14 14 15 14 15 14 15 14 14 14 4 Final Capacity 25 | 8 25 25 25 10 15 15 15 15 15 15 15 15 15 15 15 5 Final Carried 25 | 1 25 25 25 10 14 15 15 15 15 15 15 15 15 15 15 5 Class Distribution -------------------- 26% | Mutant 14% | Hacker-Scout 12% | Hacker-Ninja 10% | Scavenger-Skirmisher 9% | Scientist-Scout 8% | Scavenger-Scout 4% | Skirmisher 3% | Scavenger-Gunner Dominant Class ---------------- Mutant | -10/Materials Mutant | -10/Subcaves Scavenger-Skirmisher | -8/Materials Scavenger-Scout | -7/Factory Hacker-Scout | -6/Factory Hacker-Scout | -5/Factory Scientist-Scout | -4/Factory Scientist-Scout | -4/Waste Scientist-Scout | -4/Factory Scientist-Scout | -4/Upper Caves Scientist-Scout | -4/Upper Caves Hacker-Ninja | -4/Zhirov Hacker-Ninja | -3/Proximity Caves Hacker-Ninja | -3/Research Hacker-Ninja | -2/Research Hacker-Ninja | -1/Access Resources | -11 -10 -10 -8 -7 -6 -5 -4 -4 -4 -4 -4 -4 -3 -3 -2 -1 ----------- Run | Yrd Mat Sub Mat Fac Fac Fac Fac Was Fac Upp Upp Zhi Pro Res Res Acc Matter Collected 7168 | 263 489 282 1968 379 130 499 185 . . 78 220 340 46 90 90 2109 Remotely . | . . . . . . . . . . . . . . . . . Salvage Created 8183 | 83 508 66 2491 650 373 1023 498 . . 40 212 366 77 319 305 1172 Parts 381 | 3 44 7 148 28 7 57 19 . . . 10 2 3 12 9 32 Haulers Intercepted 22 | . 2 . 5 3 1 4 2 . . . . . . . 1 4 Recyclers Shooed 2 | . . . . . 1 . . . . . . . . . . 1 Parts Field Recycled . | . . . . . . . . . . . . . . . . . Retrieved Matter . | . . . . . . . . . . . . . . . . . Parts Self-Destructed 17 | . . 9 . . . . . . . . 5 2 1 . . . Prevented 1 | . . . . . . . . . . . . . 1 . . . Parts Restored . | . . . . . . . . . . . . . . . . . Kills | -11 -10 -10 -8 -7 -6 -5 -4 -4 -4 -4 -4 -4 -3 -3 -2 -1 ------- Run | Yrd Mat Sub Mat Fac Fac Fac Fac Was Fac Upp Upp Zhi Pro Res Res Acc Combat Hostiles Destroyed 91 | . 12 2 46 6 . 12 9 . . . 2 . . . . 2 Melee 12 | . . . . 3 . 5 . . . . 2 . . . . 2 Guns 29 | . 1 . 28 . . . . . . . . . . . . . Cannons 11 | . 8 2 1 . . . . . . . . . . . . . AOE 37 | . 3 . 17 3 . 5 9 . . . . . . . . . Classes Destroyed 21 | 1 7 2 5 2 . 1 . . . 1 1 . . . . 1 Worker 16 | . 3 . 3 1 1 4 1 . . . . . . 1 2 . Builder 11 | . . . . 3 . 7 . . . . . . . 1 . . Tunneler 3 | . 2 . 1 . . . . . . . . . . . . . Hauler 22 | . 2 . 5 3 1 4 2 . . . . . . . 1 4 Recycler 21 | 1 2 . 6 3 1 . 1 . . . . . . 2 1 4 Minesweeper 1 | . . . . . . . . . . . 1 . . . . . Mechanic 3 | . . . 1 . 1 1 . . . . . . . . . . Operator 7 | . 1 . 2 1 . 2 . . . . . . . . . 1 Watcher 25 | . 3 . 5 4 2 1 4 . . . . . 2 . 1 3 Swarmer 46 | . 9 . 20 3 . 5 9 . . . . . . . . . Cutter 2 | . . . . . . . . . . . . . . . . 2 Grunt 22 | . 3 . 16 . . 3 . . . . . . . . . . Duelist 1 | . . . . . . 1 . . . . . . . . . . Sentry 6 | . . . 6 . . . . . . . . . . . . . Specialist 2 | . . . 2 . . . . . . . . . . . . . Hunter 1 | . . . 1 . . . . . . . . . . . . . Programmer 8 | . . . . 3 . 3 . . . . 2 . . . . . Heavy 1 | . . . 1 . . . . . . . . . . . . . Artisan 1 | . . 1 . . . . . . . . . . . . . . Subdweller 2 | . . 2 . . . . . . . . . . . . . . Packrat 1 | . . . . . . . . . . . 1 . . . . . Samaritan 1 | . . . . . . . . . . 1 . . . . . . Best Kill Streak 9 | 1 5 1 7 3 3 9 6 . . . 1 . 2 4 3 2 Combat Bots Only 6 | . 5 1 6 3 . 5 5 . . . 1 . . . . 2 Max Kills in Single Turn 5 | 1 2 1 4 2 1 5 4 . . 1 1 . 1 1 1 1 Gunslinging . | . . . . . . . . . . . . . . . . . Exploded 4 | . 2 . 4 2 . 4 4 . . . . . . . . . Melee 1 | . . . . 1 . 1 . . . . 1 . . . . 1 Uniques/NPCs Destroyed . | . . . . . . . . . . . . . . . . . Combat | -11 -10 -10 -8 -7 -6 -5 -4 -4 -4 -4 -4 -4 -3 -3 -2 -1 -------- Run | Yrd Mat Sub Mat Fac Fac Fac Fac Was Fac Upp Upp Zhi Pro Res Res Acc Hostile Shots Fired 365 | . 33 4 135 61 1 42 25 . 8 . 6 . 19 . . 31 Missed 122 | . 14 2 28 31 1 8 12 . 5 . 3 . 7 . . 11 Hits 243 | . 19 2 107 30 . 34 13 . 3 . 3 . 12 . . 20 Melee 14 | . . . . . . . . . . . . . . . . 14 Projectile 229 | . 19 2 107 30 . 34 13 . 3 . 3 . 12 . . 6 AOE 3 | . . . . . . 1 . . . . . . . . . 2 Critical Strikes 18 | . 1 . 6 . . 1 . . 1 . . . . . . 9 Part Disruptions 2 | . . . . . . 1 . . . . . . . . . 1 Damage Taken 5168 | . 184 36 1720 426 . 1144 442 . 49 . 62 . 210 . . 895 Core 873 | . 26 16 201 73 . 249 68 . 12 . . . 51 . . 177 Absorbed by Shields . | . . . . . . . . . . . . . . . . . Regen/Repaired (Parts) 107 | . . . 17 . . . . . . . . . . . . 90 Core Remaining (%) 88 | 100 . 83 63 89 100 75 . . . . . . 88 100 100 88 Volleys Fired 212 | 3 51 12 128 2 . 5 4 . . . 2 . 2 . . 3 Largest 3 | 2 2 2 3 1 . 1 1 . . . 1 . 1 . . 1 Hottest 120 | 60 60 60 85 36 . 98 46 . . . 98 . 98 . . 120 Shots Fired 494 | 6 100 19 351 2 . 5 4 . . . 2 . 2 . . 3 Gun 383 | 6 33 9 335 . . . . . . . . . . . . . Cannon 89 | . 65 10 5 . . 2 . . . . 2 . 2 . . 3 Launcher 22 | . 2 . 11 2 . 3 4 . . . . . . . . . Special . | . . . . . . . . . . . . . . . . . Kinetic 445 | 3 88 19 335 . . . . . . . . . . . . . Thermal 22 | 3 10 . . . . 2 . . . . 2 . 2 . . 3 Explosive 22 | . 2 . 11 2 . 3 4 . . . . . . . . . Electromagnetic 5 | . . . 5 . . . . . . . . . . . . . Robot Hit Streak 20 | 4 8 15 20 2 . 1 1 . . . . . . . . . Robot Miss Streak 4 | 1 3 2 4 1 . 1 . . . . . . . . . . Penetration Max . | . . . . . . . . . . . . . . . . . Secondary Targets 4 | . . . 4 . . . . . . . . . . . . . Max Gunslinging Chain 1 | . . . 1 . . . . . . . . . . . . . Shots Hit Robots 498 | 4 67 11 246 24 11 56 12 . . 1 7 6 4 7 11 31 Core Hits 225 | 2 31 5 106 12 1 29 12 . . . 4 3 1 3 4 12 Critical Kills 2 | . . . 1 . . . . . . . . . . . 1 . Critical Parts Destroyed 14 | . . . 2 5 . 6 . . . . 1 . . . . . Critical Strikes 22 | . 1 . 3 5 . 8 . . . . 2 . . . 1 2 Destroy 3 | . . . 3 . . . . . . . . . . . . . Blast 1 | . 1 . . . . . . . . . . . . . . . Smash 13 | . . . . 5 . 6 . . . . 1 . . . 1 . Sever 3 | . . . . . . . . . . . 1 . . . . 2 Impale 2 | . . . . . . 2 . . . . . . . . . . Melee Attacks 357 | . . . 8 67 35 112 23 . . 1 19 7 11 13 18 43 Impact 146 | . . . 8 34 17 51 16 . . 1 6 1 2 5 5 . Slashing 110 | . . . . 22 . . 4 . . . 13 6 9 5 12 39 Piercing 88 | . . . . 11 16 58 3 . . . . . . . . . Sneak Attacks 72 | . . . . 10 7 21 5 . . 1 2 . 2 7 5 12 Combat Hostiles 1 | . . . . . . 1 . . . . . . . . . . Follow-up Attacks 16 | . . . . 2 2 4 2 . . . 2 . 1 1 2 . Damage Inflicted 19232 | 38 1072 207 5203 1771 639 3594 1866 . . 149 446 689 316 543 744 1955 Guns 4291 | 38 207 119 3927 . . . . . . . . . . . . . Cannons 965 | . 742 88 135 . . . . . . . . . . . . . Explosions 3246 | . 123 . 1111 311 . 700 1001 . . . . . . . . . Melee 10700 | . . . . 1460 639 2894 865 . . 149 446 689 316 543 744 1955 Ramming 30 | . . . 30 . . . . . . . . . . . . . Kinetic 5019 | 16 869 207 3927 . . . . . . . . . . . . . Thermal 102 | 22 80 . . . . . . . . . . . . . . . Explosive 3246 | . 123 . 1111 311 . 700 1001 . . . . . . . . . Electromagnetic 135 | . . . 135 . . . . . . . . . . . . . Impact 4627 | . . . . 941 458 1847 809 . . 149 116 . 98 68 141 . Slashing 4671 | . . . . 401 . . . . . . 330 689 218 475 603 1955 Piercing 1402 | . . . . 118 181 1047 56 . . . . . . . . . Highest Corruption 11 | . . . . 2 . 11 1 7 7 7 8 8 8 . . . Average Corruption 5 | . . . . 1 . 7 1 4 7 7 7 8 8 . . . Corruption Purged . | . . . . . . . . . . . . . . . . . Corruption Blocked . | . . . . . . . . . . . . . . . . . Effects 78 | . . . . 10 . 40 2 1 4 2 13 2 4 . . . Message Errors 21 | . . . . 3 . 12 1 . . 1 3 1 . . . . Matter Fused 21 | . . . . 2 . 15 . . 1 . 2 . 1 . . . Heat Flow Errors 13 | . . . . . . 6 1 . 2 . 2 1 1 . . . Energy Discharges 4 | . . . . . . 1 . . 1 . 2 . . . . . Parts Fused 1 | . . . . . . . . . . . 1 . . . . . Data Loss (minor) 6 | . . . . 3 . . . . . . 3 . . . . . Data Loss (major) 9 | . . . . 1 . 5 . . . 1 . . 2 . . . Alerts 3 | . . . . 1 . 1 . 1 . . . . . . . . Overload Shots . | . . . . . . . . . . . . . . . . . Overflow Damage 3161 | . 19 . 37 756 388 666 308 . . 146 64 181 105 115 115 261 Projectiles 19 | . 19 . . . . . . . . . . . . . . . Explosions 187 | . . . 37 45 . 30 75 . . . . . . . . . Melee 2955 | . . . . 711 388 636 233 . . 146 64 181 105 115 115 261 Knockbacks 19 | . 11 . . 3 . 1 3 . . . 1 . . . . . Impact 8 | . . . . 3 . 1 3 . . . 1 . . . . . Kinetic 10 | . 10 . . . . . . . . . . . . . . . Secondary 1 | . 1 . . . . . . . . . . . . . . . Self-Inflicted Damage 117 | . . . 94 . . . 23 . . . . . . . . . Shots 4 | . . . 3 . . . 1 . . . . . . . . . Rammed 1 | . . . 1 . . . . . . . . . . . . . Targets Rammed 1 | . . . 1 . . . . . . . . . . . . . Kicked . | . . . . . . . . . . . . . . . . . Crushed . | . . . . . . . . . . . . . . . . . Highest Temperature 275 | 20 32 . 197 12 . 275 226 . 234 . 238 105 223 . . 72 Average Temperature 57 | 15 11 . 44 9 . 79 124 . 150 . 83 59 133 . . 31 Received Heat Transfer 705 | . 42 . 504 54 . 66 . . . . . . 21 . . 18 Siege Activations . | . . . . . . . . . . . . . . . . . Martial Activations . | . . . . . . . . . . . . . . . . . Shielding Activations . | . . . . . . . . . . . . . . . . . Robots Disrupted . | . . . . . . . . . . . . . . . . . Combat Hostiles . | . . . . . . . . . . . . . . . . . Robots Corrupted 15 | . . . . 2 2 5 4 . . 1 . . . 1 . . Combat Hostiles 2 | . . . . . . 2 . . . . . . . . . . Parts Fried 24 | . . . . 12 4 4 2 . . 1 . . . 1 . . Impact Corruptions 60 | . . . . 17 4 18 9 . . 9 1 . 1 1 . . Robots Melted . | . . . . . . . . . . . . . . . . . Combat Hostiles . | . . . . . . . . . . . . . . . . . Parts Melted . | . . . . . . . . . . . . . . . . . Heat Transferred 225 | 50 175 . . . . . . . . . . . . . . . Parts Sabotaged . | . . . . . . . . . . . . . . . . . Parts Stolen . | . . . . . . . . . . . . . . . . . Parts Stripped . | . . . . . . . . . . . . . . . . . Power Chain Reactions . | . . . . . . . . . . . . . . . . . Alert | -11 -10 -10 -8 -7 -6 -5 -4 -4 -4 -4 -4 -4 -3 -3 -2 -1 ------- Run | Yrd Mat Sub Mat Fac Fac Fac Fac Was Fac Upp Upp Zhi Pro Res Res Acc Maximum Alert Level 2 | . . . 2 1 . 1 1 . . . . . . . . . Low Security (%) 62 | 100 100 . 35 . 100 85 25 100 100 . . . . 100 100 100 Level 1 32 | . . . 50 100 . 14 74 . . . . . . . . . Level 2 4 | . . . 14 . . . . . . . . . . . . . Level 3 . | . . . . . . . . . . . . . . . . . Level 4 . | . . . . . . . . . . . . . . . . . Level 5 . | . . . . . . . . . . . . . . . . . High Security . | . . . . . . . . . . . . . . . . . Max Security . | . . . . . . . . . . . . . . . . . Peak Influence 673 | 5 126 . 673 373 176 269 334 114 77 . . . . 36 18 71 Initial 301 | . . . . 301 166 12 121 114 72 . . . . . . 2 Average 151 | . 44 . 247 308 71 106 205 110 59 . . . . 7 1 27 Influence Increases 5259 | 5 436 . 1492 655 405 897 527 . 30 . 72 10 25 85 80 540 Destroy 0b10 Robot/C 2220 | . 240 . 920 140 140 420 180 . . . 40 . . . . 140 Destroy 0b10 Robot/NC 565 | 5 65 . 115 75 30 95 40 . . . 5 10 10 20 25 70 Destroy Leader 552 | . 60 . 240 54 36 60 32 . . . 20 . . . 4 46 Allied During Kill 172 | . . . . 4 31 47 . . . . 7 . . . . 83 Successful Hack 422 | . 8 . 13 44 107 75 42 . . . . . . 46 45 42 Disable Machine 225 | . 30 . 60 45 . 30 15 . . . . . . 15 . 30 Destroy Structure 353 | . 18 . 99 38 16 80 68 . . . . . . 4 6 24 Partial Spotted 150 | . 15 . 15 60 . . 15 . 15 . . . . . . 30 Lose Combat Pursuer 600 | . . . 30 195 45 90 135 . 15 . . . 15 . . 75 Influence Decreases 5218 | 5 419 17 828 979 719 674 450 222 92 42 35 47 25 85 75 504 Entered New Map 988 | . . 9 . 363 174 14 128 212 32 16 . 37 . . . 3 Time Decay 3404 | 5 419 8 628 546 370 496 302 10 60 26 35 10 25 85 42 337 Lost Part 230 | . . . 50 40 . 80 20 . . . . . . . . 40 Lost Ally 413 | . . . . 30 175 84 . . . . . . . . . 124 Purge Threat 183 | . . . 150 . . . . . . . . . . . 33 . Squads Dispatched 53 | . 1 . 9 10 9 11 3 . . . . . . . 2 8 Investigation 10 | . . . . 3 4 2 . . . . . . . . . 1 Extermination 19 | . . . . 5 2 4 2 . . . . . . . 2 4 Reinforcement 17 | . 1 . 5 2 1 5 . . . . . . . . . 3 Assault 3 | . . . 1 . 2 . . . . . . . . . . . Garrison 4 | . . . 3 . . . 1 . . . . . . . . . Intercept . | . . . . . . . . . . . . . . . . . Searches Triggered . | . . . . . . . . . . . . . . . . . Construction Impeded 4 | . . . 1 1 . 2 . . . . . . . . . . Haulers Reinforced 5 | . . . . . . 3 . . . . . . . . . 2 Active Scanning Responses . | . . . . . . . . . . . . . . . . . Cargo Convoy Interrupts . | . . . . . . . . . . . . . . . . . Stealth | -11 -10 -10 -8 -7 -6 -5 -4 -4 -4 -4 -4 -4 -3 -3 -2 -1 --------- Run | Yrd Mat Sub Mat Fac Fac Fac Fac Was Fac Upp Upp Zhi Pro Res Res Acc Distress Signals 11 | . . . 5 1 . 1 2 . 1 . . . . . . 1 Communications Jammed 154 | . . . . . . . . . . . . . 15 3 14 122 Distress Signals 151 | . . . . . . . . . . . . . 15 3 14 119 Times Spotted 218 | . 20 2 61 26 8 27 24 5 3 . 2 . 4 1 3 32 Peak Tracking Total 8 | . 4 1 4 8 2 5 6 5 4 . 1 . 2 1 1 7 Tactical Retreats 22 | . . . 2 6 2 4 3 . 1 . . . 1 . . 3 Traps | -11 -10 -10 -8 -7 -6 -5 -4 -4 -4 -4 -4 -4 -3 -3 -2 -1 ------- Run | Yrd Mat Sub Mat Fac Fac Fac Fac Was Fac Upp Upp Zhi Pro Res Res Acc Traps Triggered 12 | . . . . 5 . 2 2 . 1 . . . . . 1 1 Indirectly . | . . . . . . . . . . . . . . . . . Trap Hack Attempts 31 | . . . . . 31 . . . . . . . . . . . Triggered . | . . . . . . . . . . . . . . . . . Disarmed . | . . . . . . . . . . . . . . . . . Reprogrammed 2 | . . . . . 2 . . . . . . . . . . . Reused . | . . . . . . . . . . . . . . . . . Traps Extracted . | . . . . . . . . . . . . . . . . . Installed 1 | . . 1 . . . . . . . . . . . . . . Triggered . | . . . . . . . . . . . . . . . . . Machines | -11 -10 -10 -8 -7 -6 -5 -4 -4 -4 -4 -4 -4 -3 -3 -2 -1 ---------- Run | Yrd Mat Sub Mat Fac Fac Fac Fac Was Fac Upp Upp Zhi Pro Res Res Acc Machines Disabled 17 | . 2 . 4 3 . 2 1 . . . . . 2 1 . 2 Max in Single Turn 2 | . 1 . 2 1 . 1 1 . . . . . 1 1 . 1 Garrison Access 6 | . . . 1 . 2 2 . . . . . . . . . 1 Machines Repaired . | . . . . . . . . . . . . . . . . . Machines Dismantled . | . . . . . . . . . . . . . . . . . Machines Sabotaged . | . . . . . . . . . . . . . . . . . Overloaded Fab Kills . | . . . . . . . . . . . . . . . . . Hacking | -11 -10 -10 -8 -7 -6 -5 -4 -4 -4 -4 -4 -4 -3 -3 -2 -1 --------- Run | Yrd Mat Sub Mat Fac Fac Fac Fac Was Fac Upp Upp Zhi Pro Res Res Acc Machines Accessed 105 | . 10 2 11 15 15 19 14 . 1 . 1 . 1 4 3 9 Terminals 50 | . 8 . 6 7 6 8 6 . . . . . 1 2 1 5 Fabricators 12 | . . . . 2 4 5 1 . . . . . . . . . Repair Stations 5 | . . . 1 1 . 1 . . . . . . . . . 2 Recycling Units 18 | . 2 . 1 2 2 2 5 . 1 . . . . 1 1 1 Scanalyzers 9 | . . . 2 1 2 1 2 . . . . . . . 1 . Garrison Access 8 | . . . 1 2 1 2 . . . . . . . 1 . 1 Total Hacks 284 | . 22 2 30 41 50 56 31 . 4 . 7 . 3 8 11 19 Successful 151 | . 8 2 18 20 29 27 18 . . . 7 . 1 4 9 8 Failed 132 | . 14 . 12 21 20 29 13 . 4 . . . 2 4 2 11 Catastrophic 13 | . 1 . 2 . 6 3 1 . . . . . . . . . Database Lockouts 1 | . . . . . 1 . . . . . . . . . . . Manual 118 | . 17 . 11 19 22 23 11 . . . . . . 5 1 9 Terminals 146 | . 17 . 14 24 25 29 16 . . . . . 3 6 3 9 Fabricators 37 | . . . . 5 14 16 2 . . . . . . . . . Repair Stations 12 | . . . 4 2 . 2 . . . . . . . . . 4 Recycling Units 34 | . 5 . 1 3 4 4 6 . 4 . . . . 1 2 4 Scanalyzers 34 | . . . 9 4 6 2 7 . . . . . . . 6 . Garrison Access 12 | . . . 2 3 1 3 . . . . . . . 1 . 2 Terminal Hacks 45 | . . 2 4 7 7 11 3 . . . 7 . 1 . 2 1 Record 8 | . . . . . . . . . . . 7 . . . 1 . Part Schematic 4 | . . . . 3 1 . . . . . . . . . . . Robot Schematic 1 | . . . . 1 . . . . . . . . . . . . Robot Analysis 2 | . . . . . 1 1 . . . . . . . . . . Prototype ID Bank 1 | . . . . . . 1 . . . . . . . . . . Open Door 3 | . . 1 . . . . . . . . . . 1 . . 1 Level Access Points 2 | . . . . . 1 1 . . . . . . . . . . Branch Access Points 2 | . . . . 1 . 1 . . . . . . . . . . Terminal Index 2 | . . . . 1 . 1 . . . . . . . . . . Repair Station Index 1 | . . . . . . 1 . . . . . . . . . . Unreport Threat 2 | . . . 1 . . . . . . . . . . . 1 . Locate Traps 9 | . . . 2 1 2 2 2 . . . . . . . . . Recall Investigation 2 | . . . . . 2 . . . . . . . . . . . Registered Prototypes 1 | . . . . . . . 1 . . . . . . . . . Zone Layout 4 | . . . 1 . . 3 . . . . . . . . . . Proto ID Catalog 1 | . . 1 . . . . . . . . . . . . . . Fabricator Hacks 14 | . . . . 1 8 4 1 . . . . . . . . . Network Status 4 | . . . . 1 1 1 1 . . . . . . . . . Load Schematic 6 | . . . . . 4 2 . . . . . . . . . . Build 4 | . . . . . 3 1 . . . . . . . . . . Repair Station Hacks 4 | . . . 2 . . 1 . . . . . . . . . 1 Scan Component 3 | . . . 1 . . 1 . . . . . . . . . 1 Repair 1 | . . . 1 . . . . . . . . . . . . . Recycling Unit Hacks 14 | . 1 . . 2 2 1 5 . . . . . . 1 1 1 Retrieve Components 14 | . 1 . . 2 2 1 5 . . . . . . 1 1 1 Scanalyzer 29 | . . . 9 3 4 2 6 . . . . . . . 5 . Insert Component 1 | . . . . 1 . . . . . . . . . . . . Retrieve Study 28 | . . . 9 2 4 2 6 . . . . . . . 5 . Garrison Access Hacks 5 | . . . 1 . 1 2 . . . . . . . . . 1 Seal Access 5 | . . . 1 . 1 2 . . . . . . . . . 1 Unauthorized Hacks 40 | . 7 . 2 7 7 6 3 . . . . . . 3 1 4 Terminals 32 | . 7 . 2 5 5 3 3 . . . . . . 3 1 3 Track 1 | . . . . . . . 1 . . . . . . . . . Assimilate 7 | . . . . 2 2 . . . . . . . . . 1 2 Botnet 16 | . 1 . 2 3 3 3 1 . . . . . . 2 . 1 Operators 2 | . . . . . . . 1 . . . . . . 1 . . Skim 6 | . 6 . . . . . . . . . . . . . . . Fabricators 5 | . . . . 1 2 2 . . . . . . . . . . Prioritize 1 | . . . . . 1 . . . . . . . . . . . Liberate 1 | . . . . . . 1 . . . . . . . . . . Fabnet 1 | . . . . 1 . . . . . . . . . . . . Haulers 1 | . . . . . . 1 . . . . . . . . . . Recompile 1 | . . . . . 1 . . . . . . . . . . . Repair Stations 2 | . . . . . . 1 . . . . . . . . . 1 Mechanics 1 | . . . . . . 1 . . . . . . . . . . Patch 1 | . . . . . . . . . . . . . . . . 1 Recycling Units . | . . . . . . . . . . . . . . . . . Scanalyzers . | . . . . . . . . . . . . . . . . . Garrison Access 1 | . . . . 1 . . . . . . . . . . . . Reprogram 1 | . . . . 1 . . . . . . . . . . . . Data Cores Recovered 2 | . 1 . . . . 1 . . . . . . . . . . Used . | . . . . . . . . . . . . . . . . . Hacking Detections 81 | . 9 . 10 13 11 15 9 . 1 . . . 1 3 1 8 Full Trace Events 9 | . 2 . . 2 3 2 . . . . . . . . . . Feedback Events . | . . . . . . . . . . . . . . . . . Feedback Blocked . | . . . . . . . . . . . . . . . . . Robot Schematics Acquired 1 | . . . . 1 . . . . . . . . . . . . Robots Built 12 | . . . . . 9 3 . . . . . . . . . . Authchips 1 | . . . . . 1 . . . . . . . . . . . Time 268 | . . . . . 201 67 . . . . . . . . . . Total Robot Build Rating 48 | . . . . . 36 12 . . . . . . . . . . Part Schematics Acquired 4 | . . . . 3 1 . . . . . . . . . . . Parts Built . | . . . . . . . . . . . . . . . . . Authchips . | . . . . . . . . . . . . . . . . . Time . | . . . . . . . . . . . . . . . . . Total Part Build Rating . | . . . . . . . . . . . . . . . . . Part Studies Acquired 28 | . . . 9 2 4 2 6 . . . . . . . 5 . Parts Repaired 1 | . . . 1 . . . . . . . . . . . . . Time 38 | . . . 38 . . . . . . . . . . . . . Parts Recycled . | . . . . . . . . . . . . . . . . . Recycled Matter . | . . . . . . . . . . . . . . . . . Retrieved Matter . | . . . . . . . . . . . . . . . . . Retrieved Components 25 | . 1 . . 2 4 . 10 . . . . . . 2 3 3 Parts Scanalyzed . | . . . . . . . . . . . . . . . . . Part Schematics Acquired . | . . . . . . . . . . . . . . . . . Parts Damaged . | . . . . . . . . . . . . . . . . . Bothacking | -11 -10 -10 -8 -7 -6 -5 -4 -4 -4 -4 -4 -4 -3 -3 -2 -1 ------------ Run | Yrd Mat Sub Mat Fac Fac Fac Fac Was Fac Upp Upp Zhi Pro Res Res Acc Used RIF Installer . | . . . . . . . . . . . . . . . . . Robots Hacked 15 | . . . . . 5 4 . . . . . . . 1 1 4 Non-combat 9 | . . . . . 2 3 . . . . . . . 1 1 2 Combat 6 | . . . . . 3 1 . . . . . . . . . 2 Robot Hacks Applied 11 | . . . . . 2 3 . . . . . . . 1 1 4 parse_system 3 | . . . . . . . . . . . . . . 1 . 2 find_chute 2 | . . . . . 1 1 . . . . . . . . . . find_fabricator 4 | . . . . . 1 2 . . . . . . . . 1 . find_recycling 1 | . . . . . . . . . . . . . . . . 1 check_alert 1 | . . . . . . . . . . . . . . . . 1 Relay Couplers Released 2 | . . . . . 2 . . . . . . . . . . . Machine Destruction 2 | . . . . . 2 . . . . . . . . . . . Fabnet Peak Effective % 3 | . . . . . 3 1 . . . . . . . . . . Autooverrided 4 | . . . . . 3 1 . . . . . . . . . . Robots Rewired . | . . . . . . . . . . . . . . . . . Allies Hacked 6 | . . . . 1 . . . . . . . . . . . 5 Hacks Repelled 4 | . . . . . . . . . . . . . . . . 4 Allies | -11 -10 -10 -8 -7 -6 -5 -4 -4 -4 -4 -4 -4 -3 -3 -2 -1 -------- Run | Yrd Mat Sub Mat Fac Fac Fac Fac Was Fac Upp Upp Zhi Pro Res Res Acc Total Allies 32 | . . . . 5 14 8 . . . . 2 . . . 1 2 Largest Group 6 | . . . . 3 6 4 . . . . 2 . . . 1 1 Highest-Rated Group 138 | . . . . 48 138 138 . . . . 76 . . . 45 45 Highest-Rated Ally 49 | . . . . 26 37 49 . . . . 38 . . . 45 45 Total Orders 13 | . . . . . 7 . . . . . . . . . 2 4 STAY 8 | . . . . . 5 . . . . . . . . . 1 2 FOLLOW 5 | . . . . . 2 . . . . . . . . . 1 2 Ally Attacks 171 | . . . . 13 41 48 . . . . 2 . . . . 67 Total Damage 4393 | . . . . 143 743 1096 . . . . 50 . . . . 2361 Kills 24 | . . . . 1 7 9 . . . . . . . . . 7 Allies Corrupted 2 | . . . . . . . . . . . . . . . . 2 Allies Melted 2 | . . . . . 1 1 . . . . . . . . . . Borg Created 8 | . . . . . . . . . . . . . . . . 8 Largest Collective 5 | . . . . . . . . . . . . . . . . 5 Intel | -11 -10 -10 -8 -7 -6 -5 -4 -4 -4 -4 -4 -4 -3 -3 -2 -1 ------- Run | Yrd Mat Sub Mat Fac Fac Fac Fac Was Fac Upp Upp Zhi Pro Res Res Acc Active Infowar (turns) 12712 | . 157 1640 3580 1572 981 1635 667 31 132 71 372 70 197 307 319 981 Optics 10915 | . . . 3580 1572 981 1635 667 31 132 71 372 70 197 307 319 981 Sensors 9946 | . . . 2718 1554 979 1571 667 31 125 71 361 68 197 307 316 981 IFF 1 | . . . . . . . . . . . 1 . . . . . Terrain 263 | . 157 15 . . . 91 . . . . . . . . . . Structural 4198 | . . . . . . 1051 667 31 132 71 372 70 197 307 319 981 Seismic 2440 | . . 1625 815 . . . . . . . . . . . . . Jamming 2040 | . . . . . . . . . . . 174 70 197 303 315 981 Robot Analysis Total 2 | . . . . . 1 1 . . . . . . . . . . Derelict Logs Recovered 5 | . . 2 . . . . . . . 1 2 . . . . . Drone Launches . | . . . . . . . . . . . . . . . . . Drone Recoveries . | . . . . . . . . . . . . . . . . . Exploration | -11 -10 -10 -8 -7 -6 -5 -4 -4 -4 -4 -4 -4 -3 -3 -2 -1 ------------- Run | Yrd Mat Sub Mat Fac Fac Fac Fac Was Fac Upp Upp Zhi Pro Res Res Acc Turns Passed 14841 | 86 2199 1641 3580 1572 981 1635 667 31 132 71 372 70 197 307 319 981 Spaces Moved 14168 | 43 857 651 1417 2138 1390 1969 1191 85 308 224 660 147 346 614 705 1423 Core 1 | 1 . . . . . . . . . . . . . . . . Treads 650 | 42 359 . 249 . . . . . . . . . . . . . Legs . | . . . . . . . . . . . . . . . . . Wheels 2317 | . 498 651 1168 . . . . . . . . . . . . . Hover 11200 | . . . . 2138 1390 1969 1191 85 308 224 660 147 346 614 705 1423 Flight . | . . . . . . . . . . . . . . . . . Fastest Speed 30 | 50 160 175 130 40 32 32 30 30 30 30 30 31 31 31 33 33 Average Speed 72 | 157 202 206 202 47 35 38 34 30 30 30 30 31 33 35 33 37 Slowest Speed 480 | 160 320 215 480 112 40 100 36 30 102 30 31 31 100 36 33 98 Overloaded Moves . | . . . . . . . . . . . . . . . . . Propulsion Burnouts . | . . . . . . . . . . . . . . . . . Robots Hopped . | . . . . . . . . . . . . . . . . . Potential Cave-ins . | . . . . . . . . . . . . . . . . . Cave-ins Triggered 1 | . . . . . . 1 . . . . . . . . . . Exploration Rate (%) 45 | 3 97 30 93 44 27 50 35 90 9 53 65 58 46 12 20 35 Regions Visited 16 Branch Regions 5 Pre-discovered Areas 1 | . . 1 . . . . . . . . . . . . . . Known Exits Taken 12 | . 1 . 1 1 1 1 . . 1 1 1 1 1 1 1 . Unknown Exits Taken 2 | 1 . 1 . . . . . . . . . . . . . . Scrap Searched 8 | . . 4 . . . . . . . 1 3 . . . . . Spaces Dug 161 | . . . 58 27 16 27 15 . . . 6 . 2 2 2 6 Terrain Destroyed 269 | . 16 . 100 37 16 42 37 . . . 8 . 3 2 2 6 Melee 95 | . . . 7 27 16 26 4 . . . 6 . 1 2 2 4 Projectile 8 | . . . . . . 2 . . . . 2 . 2 . . 2 AOE 166 | . 16 . 93 10 . 14 33 . . . . . . . . . Terrain Rammed . | . . . . . . . . . . . . . . . . . Walls Destroyed . | . . . . . . . . . . . . . . . . . Machines Disabled . | . . . . . . . . . . . . . . . . . Actions | -11 -10 -10 -8 -7 -6 -5 -4 -4 -4 -4 -4 -4 -3 -3 -2 -1 --------- Run | Yrd Mat Sub Mat Fac Fac Fac Fac Was Fac Upp Upp Zhi Pro Res Res Acc Total 18041 | 53 1227 942 1955 2618 1837 2702 1422 90 343 225 807 160 410 693 768 1789 Wait 2725 | 1 266 243 262 353 362 560 176 . 23 1 111 . 48 43 34 242 Move 14152 | 42 856 650 1416 2137 1389 1968 1191 84 307 223 659 146 345 613 704 1422 Hop . | . . . . . . . . . . . . . . . . . Pick Up 123 | 1 28 10 30 7 5 12 9 1 2 . 3 1 1 2 1 10 Fast Attach 105 | 6 7 2 14 10 2 15 4 2 6 . 6 3 . 8 4 16 Attach 50 | . . 1 8 16 3 8 5 . . . 1 . 1 2 2 3 Detach 17 | . 2 1 3 7 1 1 . . . . . . . 1 . 1 Swap 114 | . 5 6 39 9 8 16 6 . 1 . 5 1 3 3 2 10 Drop 188 | . 12 16 46 20 5 20 10 3 4 . 7 3 1 11 5 25 Fire 212 | 3 51 12 128 2 . 5 4 . . . 2 . 2 . . 3 Melee 308 | . . . 8 57 31 97 17 . . 1 13 6 9 10 16 43 Ram 1 | . . . 1 . . . . . . . . . . . . . Kick . | . . . . . . . . . . . . . . . . . Crush . | . . . . . . . . . . . . . . . . . Escape Stasis . | . . . . . . . . . . . . . . . . . Rewire 4 | . . . . . . . . . . . . . . . . 4 Trap 32 | . . 1 . . 31 . . . . . . . . . . . Miscellaneous 10 | . . . . . . . . . . . . . . . . 10 Route ------- -11/Scrapyard -10/Materials (discovered 5 exits: *Mat x3 / *Min / *Sub) -10/Subcaves -8/Materials (discovered 3 exits: *Fac x3) -7/Factory (discovered 4 exits: *Fac x2 / Low x2) -6/Factory (discovered 4 exits: *Fac x4) -5/Factory (discovered 6 exits: *Fac x4 / *Upp x2) -4/Factory -4/Waste -4/Factory -4/Upper Caves -4/Upper Caves -4/Zhirov -3/Proximity Caves -3/Research (discovered 2 exits: *Res / Tes) -2/Research -1/Access To Epsilon Eridani History --------- Turn | Location | Event 7 | -11/Scrapyard | Discovered new exit (range 15) 87 | -11/Scrapyard | Entered Materials 316 | -10/Materials | Build established: Mutant 391 | -10/Materials | Discovered new exit (range 14) 884 | -10/Materials | Discovered new exit (range 8) 1078 | -10/Materials | Discovered new exit (range 9) 1456 | -10/Materials | Discovered new exit (range 5) 1613 | -10/Materials | Discovered new exit (range 6) 1909 | -10/Materials | Learned Storage emergency access door positions 1975 | -10/Materials | Learned Storage stockpile data 2032 | -10/Materials | Learned 4 Subcaves zone layouts 2201 | -10/Materials | Identified exit to Mines 2201 | -10/Materials | Identified exit to Materials 2201 | -10/Materials | Identified exit to Subcaves 2286 | -10/Materials | Entered Subcaves 2287 | -10/Subcaves | Approached by a straggling Scientist 2306 | -10/Subcaves | Learned location of Storage (-9) 3001 | -10/Subcaves | Shifting Twisted Machinery released Mak. Flight Unit 3018 | -10/Subcaves | Shifting Twisted Machinery released Mak. Light Armor Plating 3244 | -10/Subcaves | Discovered new exit (range 13) 3806 | -10/Subcaves | Visited 4L-MR0's lab 3825 | -10/Subcaves | Found Prototype Special Melee Weapon 3927 | -10/Subcaves | Entered Materials 3927 | -8/Materials | Evolved 4 slots: Propulsion x1, Utility x2, Weapon x1 4232 | -8/Materials | Build established: Scavenger-Gunner 4579 | -8/Materials | Build established: Gunner 4843 | -8/Materials | Garrison activated, responded to threat 5040 | -8/Materials | Build established: Skirmisher 5216 | -8/Materials | Discovered new exit (range 18) 5734 | -8/Materials | Discovered new exit (range 5) 5740 | -8/Materials | Build established: Scavenger-Skirmisher 6616 | -8/Materials | Discovered new exit (range 9) 6781 | -8/Materials | Repaired Imp. Sensor Array 6829 | -8/Materials | Build established: Scavenger-Mutant 7127 | -8/Materials | First assault squad dispatched 7306 | -8/Materials | Lost 3 parts (1n2w) 7391 | -8/Materials | Build established: Scavenger-Skirmisher 7506 | -8/Materials | Identified exit to Factory 7507 | -8/Materials | Entered Factory 7507 | -7/Factory | Evolved 2 slots: Propulsion x1, Utility x1 7534 | -7/Factory | Identified 1B-0RG's Assimilator 7537 | -7/Factory | Discovered new exit (range 15) 7795 | -7/Factory | Identified exit to Lower Caves 7815 | -7/Factory | Build established: Scavenger-Scout 7995 | -7/Factory | Lost 3 parts (3n) 8987 | -7/Factory | Discovered new exit (range 17) 9009 | -7/Factory | Build established: Scout 9016 | -7/Factory | Identified exit to Factory 9079 | -7/Factory | Entered another Factory area 9079 | -6/Factory | Accompanied by 1 ally 9079 | -6/Factory | Evolved 2 slots: Propulsion x1, Utility x1 9195 | -6/Factory | Identified exit to Factory 9419 | -6/Factory | Build established: Hacker-Scout 9621 | -6/Factory | Fabricated B-48 Gladiator? 9814 | -6/Factory | Fabricated B-48 Gladiator (x3) 9833 | -6/Factory | Central database locked down 9914 | -6/Factory | Fabricated B-48 Gladiator (x3) 10060 | -6/Factory | Entered another Factory area 10060 | -5/Factory | Accompanied by 2 allies 10060 | -5/Factory | Evolved 2 slots: Power x1, Utility x1 10304 | -5/Factory | Crushed by falling debris 10512 | -5/Factory | Lost 5 parts (2p2n1u) 10584 | -5/Factory | Identified exit to Upper Caves 10847 | -5/Factory | Identified exit to Factory 10886 | -5/Factory | Watched by a mysterious "MATRIX" hacker. 11337 | -5/Factory | System corruption reached 10% 11651 | -5/Factory | Fabricated B-48 Gladiator? 11695 | -5/Factory | Entered another Factory area 11695 | -4/Factory | Evolved 2 slots: Propulsion x1, Utility x1 11854 | -4/Factory | Build established: Scientist-Scout 11993 | -4/Factory | Discovered new exit (range 15) 12346 | -4/Factory | Garrison activated, responded to threat 12362 | -4/Factory | Sucked down chute 12362 | -4/Factory | Entered Waste 12367 | -4/Waste | Spotted C-40 Crusher 12370 | -4/Waste | Spotted C-40 Crusher 12370 | -4/Waste | Spotted C-40 Crusher 12373 | -4/Waste | Spotted C-40 Crusher 12375 | -4/Waste | Spotted C-40 Crusher 12377 | -4/Waste | EMP discharged 12377 | -4/Waste | Spotted C-40 Crusher 12384 | -4/Waste | Discovered new exit (range 10) 12387 | -4/Waste | Found Prototype Launcher 12387 | -4/Waste | Identified Ragnarok Missile Launcher 12393 | -4/Waste | Identified exit to Factory 12393 | -4/Waste | Entered Factory 12514 | -4/Factory | Discovered new exit (range 18) 12525 | -4/Factory | Identified exit to Upper Caves 12525 | -4/Factory | Entered Upper Caves 12545 | -4/Upper Caves | Identified exit to Upper Caves 12596 | -4/Upper Caves | Entered another Upper Caves area 12633 | -4/Upper Caves | A Commander dispatched an escort 12634 | -4/Upper Caves | Entered an active Warlord outpost 12637 | -4/Upper Caves | Learned Factory emergency access door positions 12718 | -4/Upper Caves | Learned location of 1 exit from Research 12781 | -4/Upper Caves | Found Alien Artifact 12781 | -4/Upper Caves | Identified Core Expander 12781 | -4/Upper Caves | Installed Core Expander, added new Utility slot 12788 | -4/Upper Caves | Found DCF Scrap (14 items) 12930 | -4/Upper Caves | Discovered new exit (range 13) 12962 | -4/Upper Caves | Identified exit to Zhirov 12968 | -4/Upper Caves | Entered Zhirov 12968 | -4/Zhirov | Accompanied by 2 allies 12968 | -4/Zhirov | Discovered new exit (range 3) 12969 | -4/Zhirov | Commander's escort returned to base 12969 | -4/Zhirov | Commander's escort returned to base 12974 | -4/Zhirov | Met Zhirov 12982 | -4/Zhirov | Found Alien Artifact 12982 | -4/Zhirov | Identified Integrated Dissipator 12982 | -4/Zhirov | Installed Integrated Dissipator, increased core heat dissipation (+20) 13037 | -4/Zhirov | Identified exit to Proximity Caves 13038 | -4/Zhirov | Entered Proximity Caves 13081 | -3/Proximity Caves | Spotted B-86 Titan 13183 | -3/Proximity Caves | Snuck into a huge 0b10 base via the rear entrance 13222 | -3/Proximity Caves | Discovered new exit (range 4) 13225 | -3/Proximity Caves | Identified exit to Research 13235 | -3/Proximity Caves | Entered Research 13235 | -3/Research | Evolved 2 slots: Propulsion x1, Utility x1 13236 | -3/Research | Identified exit to Testing 13292 | -3/Research | Build established: Hacker-Ninja 13478 | -3/Research | Discovered new exit (range 16) 13538 | -3/Research | Identified exit to Research 13542 | -3/Research | Entered another Research area 13542 | -2/Research | Evolved 2 slots: Propulsion x1, Weapon x1 13682 | -2/Research | Found Prototype Processor 13790 | -2/Research | Discovered new exit (range 11) 13855 | -2/Research | Identified exit to Access 13861 | -2/Research | Entered Access 13861 | -1/Access | Accompanied by 1 ally 13861 | -1/Access | Evolved 2 slots: Weapon x2 13869 | -1/Access | Identified Spectral Analyzer 13906 | -1/Access | Assimilating Eye 10a into Collective. 13924 | -1/Access | Assimilating Processor 10a into Collective. 13968 | -1/Access | Assimilating Warden 10a into Collective. 14049 | -1/Access | Assimilating Processor 10b into Collective. 14138 | -1/Access | Found Prototype Launcher 14138 | -1/Access | Identified Enh. Gamma Bomb Array 14215 | -1/Access | Assimilating Master 10a into Collective. 14221 | -1/Access | Assimilating Enforcer 10a into Collective. 14338 | -1/Access | Assimilating Master 10b into Collective. 14391 | -1/Access | Assimilating Dissector 10a into Collective. 14433 | -1/Access | Lost 6 allies 14445 | -1/Access | Spotted B-99 Colossus 14840 | -1/Access | Discovered new exit (range 6) 14841 | -1/Access | Identified exit to Surface 14842 | *** | Escaped! Last Messages --------------- >>Trojan(Botnet) Trojan loaded successfully. Testing... Terminal linked with 0 systems. Awaiting botnet instructions. 1 m4Y n07 8e 7h3 0R4Cl3 (7Ha 1 1Z 4 5ub5ErVIeN7 Idi07), 8U7 1 S33 a lo7 oF r04D8L0x 1n UR n0T-7Oo-D15t4NT Phu7urE 1F U k33P 7h1S uP. 14802_ Connecting with Garrison Access... >>Seal Access door sealed. 14810_ Dropped Antigrav System+. 14822_ Sneak attack on A-15 Conveyor. 14822_ A-15 Conveyor destroyed. 14825_ Acquired 117 matter. 14839_ Connecting with Terminal... >>Open(Door) Sealed Barrier opened. 14840_ The Access Shell folds into the floor. 14840_ EXIT=FOUND 14841_ EXIT=IDENTIFIED: SURFACE Map ----- +----------------------------------------------------+ | ####! # ?????????????????????????????????????????? | | ####!!##?????????????????????????????????????????? | | #!!##?????????????????????????????????????????? | | # !##?????????????????????????????????????????? | | #!!##?????????????????????????????????????????? | | #!!##????### #????????????????????????? | | #! ##????#############????????????????????????? | | " + ##????## ##????????????????????????? | | # ##????## ##????????????????????????? | | # ######## = ##????????????????????????? | | #/## ######## ##????????????????????????? | | # # ##????????????????????????? | | # "" "" ##????????????????????????? | | ####+##+### # ""R"" !##????????????????????????? | | ## + """" ##????????????????????????? | | ## ############????????????????????????? | | ## ############????????????????????????? | | ## ##???#####??????????????????????????? | | " ## ###################?????????????????? | | """ ## ####### ###########?????????????????? | | """ ## """T""" ""?????????????????? | | " ## """ """ "????BB????????????? | | ########### "????BB????????????? | | ########### "??????????????????? | | ?????????## "" "??????????????????? | | ?????????## @" "??????????????????? | | ?????????## "??????????????????? | | ?????????## "????BB????????????? | | ?????????## "????BB????????????? | | ?????????## ""?????????????????? | | ?????????## ####### ###########?????????????????? | | ?????????## ###################?????????????????? | | ?????????## ##???#####??????????????????????????? | | ????????? # # ??????????????????????????????????? | | ????????? # # ??????????????????????????????????? | | ????????? + ????????????????????????????????????? | | ????????? # ????????????????????????????????????? | | ????????? # ????????????????????????????????????? | | ????????? # ????????????????????????????????????? | | ????????? # ????????????????????????????????????? | | ????????? # ????????????????????????????????????? | | ?????????## ????????????????????????????????????? | | ?????????## ????????????????????????????????????? | | ????????? ????????????????????????????????????? | | ??????????? ????????????????????????????????????? | | ?????????????????????????????????????????????????? | | ?????????????????????????????????????????????????? | | ?????????????????????????????????????????????????? | | ?????????????????????????????????????????????????? | | ?????????????????????????????????????????????????? | +----------------------------------------------------+ Best States ------------- Heat Dissipation 98 Energy Generation 41 Energy Capacity 1110 Matter Stores 300 Matter Capacity 300 Sight Range 24 Robot Scan Range 16 Terrain Scan Range 14 Terrain Scan Density 10 Jamming Range 14 Evasion (%) 66 Targeting Accuracy 8 Melee Accuracy 5 Recoil Reduction 3 Offensive Hacking 34 Defensive Hacking 14 Authchip Count 1 Item Schematics ----------------- Hacking Suite | -7/Factory | Hacked Adv. Visual Processing Unit | -7/Factory | Hacked Enh. Optical Array | -7/Factory | Hacked Imp. Hacking Suite | -6/Factory | Hacked Robot Schematics ------------------ B-48 Gladiator | -7/Factory | Hacked Fabricated ------------ B-48 Gladiator | x3 | -6/Factory B-48 Gladiator | x3 | -6/Factory | Authchip B-48 Gladiator | x3 | -6/Factory B-48 Gladiator | x3 | -5/Factory Repaired ---------- Imp. Sensor Array | 22% | -8/Materials Studied --------- Autogun | -8/Materials | Hacked Rocket Launcher | -8/Materials | Hacked Hover Unit | -8/Materials | Hacked Nuclear Core | -8/Materials | Hacked Imp. Datajack | -8/Materials | Hacked Imp. Grenade Launcher | -8/Materials | Hacked Hvy. Flail | -8/Materials | Hacked Wheel | -8/Materials | Hacked Lgt. Treads | -8/Materials | Hacked Hvy. Hammer | -7/Factory | Hacked Lgt. Nuclear Core | -7/Factory | Hacked Airjet | -6/Factory | Hacked Fission Core | -6/Factory | Hacked Gravmag Array | -6/Factory | Hacked Linear Gravjet | -6/Factory | Hacked Antigrav System | -5/Factory | Hacked Spear | -5/Factory | Hacked Angular Momentum Engine | -4/Factory | Hacked Particle Reactor | -4/Factory | Hacked Imp. Linear Gravjet | -4/Factory | Hacked Adv. Plasma Cannon | -4/Factory | Hacked Lgt. Antimatter Reactor | -4/Factory | Hacked Imp. Plasma Cutter | -4/Factory | Hacked Antigrav Array | -2/Research | Hacked Antimatter Reactor | -2/Research | Hacked Neutrino Core | -2/Research | Hacked Enh. Nova Cannon | -2/Research | Hacked Adv. Datajack | -2/Research | Hacked Alien Tech Used ----------------- Core Expander Integrated Dissipator Achievements -------------- War Machine Challenges ------------ None Game ------ Seed ExpertDeflectorShockpuncher Manual? 0 Play Time 01:58:39 Cumulative 1632.6 hours Start 2026.03.01 @ 17:05:57 End 2026.03.01 @ 21:59:44 Sessions 3 Manual Loads 0 Difficulty Rogue Special Mode None Game No. 1172 Rogue 1132 Adventurer 40 Explorer 0 Win Type 0 Total 212 Types 96/11/74/2/2/4/16/2/1/4 Lore% 97 Gallery% 96 Achievement% 84 Wizard Run 0 Options --------- Layout 0 ASCII 0 Keyboard 0 Movement Numpad Keybinds 0 Fullscreen 0 Font 20/Terminus Map View 76x50 Zoom Use 0% Tactical HUD 1 Map Filters NONE Filters NONE Steam 1 RUN: b131e78f-c79c-4a15-a47b-6281d43881da